bitfinex-derivatives/quotes_SOLF0:USTF0_20250829
["timestamp","ask_amount","ask_price","bid_price","bid_amount"]
[1756478953252,7.08,209.79,209.57,320.08]
[1756478953554,7.08,209.79,209.59,152.86959104]
[1756478953756,7.08,209.79,209.59,156.803496]
[1756478954051,34.98959104,209.85,209.59,156.803496]
[1756478954052,26.92,209.84,209.59,156.803496]
[1756478954351,7.08,209.83,209.59,156.803496]
[1756478954652,7.08,209.84,209.59,18.56959104]
[1756478954854,47.68959104,209.85,209.6,134.12]
[1756478955046,7.08,209.84,209.6,134.12]
[1756478955447,47.68959104,209.85,209.6,134.12]
[1756478955652,7.08,209.84,209.6,134.12]
[1756478956558,7.08,209.84,209.64,18.56959104]
[1756478956962,7.08,209.9,209.69,18.56959104]
[1756478957149,7.08,209.9,209.7,133.98]
[1756478958254,7.08,209.9,209.68,18.56959104]
[1756478958454,21.4,209.89,209.63,18.56959104]
[1756478958651,7.08,209.84,209.65,13.78]
[1756478958854,140.92,209.84,209.65,13.78]
[1756478959555,7.08,209.83,209.65,13.78]
[1756478960667,7.08,209.82,209.65,13.78]
[1756478960860,133.84,209.84,209.57,320.08]
[1756478960861,7.08,209.79,209.57,320.08]
[1756478961659,7.08,209.78,209.57,320.08]
[1756478961855,14.32,209.79,209.57,320.08]
[1756478962060,7.08,209.74,209.57,320.08]
[1756478962358,133.68,209.73,209.57,320.08]
[1756478962563,140.72,209.74,209.57,320.08]
[1756478963262,133.58,209.78,209.57,320.08]
[1756478963463,7.08,209.79,209.57,320.08]
[1756478963658,133.58,209.78,209.57,320.08]
[1756478963863,133.58,209.78,209.6,18.56959104]
[1756478964168,7.08,209.77,209.57,320.08]
[1756478964462,7.08,209.77,209.57,338.64959104]
[1756478964967,453.82,209.81,209.62,18.56959104]
[1756478965171,453.82,209.81,209.63,133.58]
[1756478965471,7.08,209.8,209.6,133.56]
[1756478965864,453.82,209.81,209.57,320.08]
[1756478966065,18.56959104,209.78,209.57,453.74]
[1756478966261,7.08,209.76,209.56,292.96061734]
[1756478966668,21.4,209.77,209.56,292.96061734]
[1756478966968,7.08,209.72,209.45,320.34]
[1756478967167,16.26,209.71,209.51,133.62]
[1756478967866,33.64,209.72,209.51,133.62]
[1756478969768,33.64,209.72,209.45,320.34]
[1756478969769,7.08,209.71,209.47,18.56959104]
[1756478970071,7.08,209.71,209.51,133.54]
[1756478970366,40.0,209.7,209.47,18.56959104]
[1756478970572,7.08,209.67,209.46,133.42]
[1756478970874,18.56959104,209.58,209.34,18.56959104]
[1756478971070,18.56959104,209.53,209.26,338.98959104]
[1756478971373,7.08,209.51,209.27,134.16]
[1756478971671,7.08,209.51,209.28,134.16]
[1756478971874,7.08,209.51,209.29,18.56959104]
[1756478972470,33.9,209.57,209.29,18.56959104]
[1756478972666,33.9,209.57,209.37,18.56959104]
[1756478972865,33.9,209.57,209.38,97.46]
[1756478972866,37.68,209.57,209.38,97.46]
[1756478973170,7.08,209.63,209.38,97.46]
[1756478973470,35.88,209.61,209.42,18.56959104]
[1756478973973,7.08,209.6,209.42,18.56959104]
[1756478974273,320.42,209.66,209.42,18.56959104]
[1756478974274,7.08,209.65,209.42,18.56959104]
[1756478974771,7.08,209.65,209.47,18.56959104]
[1756478974971,7.08,209.65,209.48,74.12]
[1756478975470,7.08,209.72,209.48,74.12]
[1756478976463,7.45,209.72,209.49,59.1]
[1756478976662,34.84959104,209.73,209.49,59.1]
[1756478977069,141.47,209.72,209.49,59.1]
[1756478977374,134.02,209.71,209.49,59.1]
[1756478977576,7.45,209.7,209.49,59.1]
[1756478977770,134.02,209.71,209.47,18.56959104]
[1756478977971,18.56959104,209.68,209.46,49.42]
[1756478978373,7.45,209.67,209.43,43.24]
[1756478978566,14.32,209.67,209.43,43.24]
[1756478978768,7.45,209.66,209.42,27.48]
[1756478978972,21.77,209.66,209.42,27.48]
[1756478979268,32.88959104,209.63,209.4,18.56959104]
[1756478979573,7.45,209.61,209.4,18.56959104]
[1756478980874,7.45,209.61,209.39,29.26]
[1756478980875,7.45,209.61,209.45,18.56959104]
[1756478982580,7.45,209.61,209.4,18.56959104]
[1756478982782,7.45,209.61,209.4,51.26959104]
[1756478983081,7.45,209.62,209.4,18.56959104]
[1756478983276,14.32,209.63,209.4,18.56959104]
[1756478983476,7.45,209.62,209.4,18.56959104]
[1756478983982,7.45,209.62,209.41,133.66]
[1756478984980,25.56,209.64,209.41,133.66]
[1756478985283,14.32,209.63,209.4,133.68]
[1756478985475,7.45,209.6,209.4,133.68]
[1756478985680,7.45,209.6,209.38,133.48]
[1756478986280,7.45,209.6,209.41,18.56959104]
[1756478986880,7.45,209.6,209.42,133.46]
[1756478987584,7.45,209.6,209.41,18.56959104]
[1756478987585,18.56959104,209.59,209.35,502.88427948]
[1756478987777,7.45,209.57,209.35,502.88427948]
[1756478987976,14.32,209.57,209.35,502.88427948]
[1756478988177,7.45,209.55,209.35,182.36427948]
[1756478988380,14.32,209.56,209.35,182.36427948]
[1756478988381,7.45,209.53,209.35,182.36427948]
[1756478990182,7.45,209.53,209.35,315.64427948]
[1756478990992,7.45,209.53,209.35,315.62427948]
[1756478991284,7.45,209.53,209.35,182.36427948]
[1756478991593,7.45,209.53,209.36,106.26]
[1756478991891,7.45,209.53,209.35,182.36427948]
[1756478991892,7.45,209.54,209.35,182.36427948]
[1756478992188,7.45,209.54,209.35,200.93387052]
[1756478992894,7.45,209.52,209.35,182.36427948]
[1756478993085,7.45,209.49,209.28,133.2]
[1756478993888,7.45,209.47,209.23,320.68]
[1756478994189,46.44,209.46,209.25,18.56959104]
[1756478995290,7.45,209.45,209.25,18.56959104]
[1756478995481,7.45,209.45,209.26,133.22]
[1756478995886,7.45,209.44,209.23,320.68]
[1756478996588,54.64,209.43,209.23,320.68]
[1756478996793,7.45,209.42,209.23,320.68]
[1756478997792,7.45,209.42,209.25,18.56959104]
[1756478998395,18.56959104,209.51,209.25,18.56959104]
[1756478998694,7.45,209.47,209.25,18.56959104]
[1756478999095,32.76,209.54,209.3,18.56959104]
[1756478999302,7.45,209.53,209.31,133.24]
[1756478999487,7.45,209.53,209.32,95.58]
[1756478999795,7.45,209.53,209.3,18.56959104]
[1756478999998,7.45,209.53,209.31,11.7]
[1756479000396,7.45,209.53,209.35,18.56959104]
[1756479000701,7.45,209.6,209.4,18.56959104]
[1756479000890,7.45,209.57,209.34,18.56959104]
[1756479001097,14.32,209.57,209.35,41.26]
[1756479001297,7.45,209.56,209.35,41.26]
[1756479001498,7.45,209.54,209.35,41.26]
[1756479001695,14.32,209.5,209.29,133.24]
[1756479001893,7.45,209.48,209.29,133.24]
[1756479002195,7.45,209.48,209.34,18.56959104]
[1756479002497,133.24,209.52,209.34,18.56959104]
[1756479002899,133.24,209.52,209.35,108.04]
[1756479003192,7.45,209.54,209.35,108.04]
[1756479003498,7.45,209.54,209.39,18.56959104]
[1756479003704,124.1151433,209.58,209.39,18.56959104]
[1756479003997,124.1151433,209.58,209.44,18.56959104]
[1756479004200,122.02,209.66,209.49,18.56959104]
[1756479004401,122.02,209.66,209.45,133.24]
[1756479004402,7.45,209.65,209.38,5.28768124]
[1756479004692,7.45,209.65,209.43,18.56959104]
[1756479004892,7.45,209.65,209.39,133.24]
[1756479005091,14.32,209.63,209.39,133.24]
[1756479005295,14.32,209.63,209.37,18.56959104]
[1756479005296,7.45,209.61,209.37,18.56959104]
[1756479005491,7.45,209.61,209.36,320.86]
[1756479005492,7.45,209.58,209.38,133.24]
[1756479005689,7.45,209.56,209.38,133.24]
[1756479006495,7.45,209.56,209.39,18.56959104]
[1756479006998,7.45,209.56,209.37,133.22]
[1756479007200,7.01,209.55,209.37,133.22]
[1756479008300,7.01,209.56,209.36,320.86]
[1756479009194,7.01,209.55,209.36,320.86]
[1756479009400,7.01,209.53,209.32,133.22]
[1756479009997,21.33,209.53,209.32,133.22]
[1756479010197,7.01,209.52,209.28,183.17715797]
[1756479010397,14.32,209.52,209.29,130.32]
[1756479010602,7.01,209.48,209.28,183.17715797]
[1756479010800,7.01,209.48,209.32,18.56959104]
[1756479011504,320.84,209.54,209.32,18.56959104]
[1756479012100,320.84,209.54,209.37,18.56959104]
[1756479012400,7.01,209.55,209.38,133.22]
[1756479012602,339.40959104,209.66,209.42,18.56959104]
[1756479012603,140.23,209.61,209.42,18.56959104]
[1756479013207,133.22,209.61,209.37,344.69727228]
[1756479013402,133.22,209.61,209.39,133.22]
[1756479013403,7.01,209.6,209.39,133.22]
[1756479013602,166.10959104,209.61,209.39,133.22]
[1756479013801,7.01,209.6,209.39,133.22]
[1756479014002,147.54,209.61,209.39,133.22]
[1756479014205,7.01,209.6,209.39,133.22]
[1756479014600,18.56959104,209.56,209.36,5.28768124]
[1756479014801,18.56959104,209.56,209.33,7.93152187]
[1756479014802,21.33,209.55,209.31,8.32]
[1756479015208,21.33,209.55,209.29,5.28768124]
[1756479015503,14.32,209.49,209.28,316.37715797]
[1756479015706,7.01,209.47,209.28,316.37715797]
[1756479016306,18.56959104,209.46,209.23,326.10768124]
[1756479016513,18.56959104,209.41,209.2,5.28768124]
[1756479016809,18.56959104,209.41,209.18,7.93152187]
[1756479016810,7.01,209.4,209.18,25.28768124]
[1756479017011,7.01,209.4,209.18,20.0]
[1756479017314,16.1,209.4,209.19,32.6]
[1756479017515,7.01,209.39,209.16,18.56959104]
[1756479017712,16.1,209.4,209.13,5.28768124]
[1756479017906,18.56959104,209.36,209.11,459.34768124]
[1756479018104,320.86,209.35,209.11,320.84]
[1756479018409,7.01,209.34,209.14,18.56959104]
[1756479018812,7.01,209.34,209.19,18.56959104]
[1756479019014,7.01,209.34,209.2,133.22]
[1756479019711,133.22,209.39,209.2,133.22]
[1756479020309,140.25,209.41,209.2,133.22]
[1756479020509,7.01,209.4,209.19,103.86]
[1756479021015,151.80959104,209.41,209.19,103.86]
[1756479021317,7.01,209.4,209.19,103.86]
[1756479022217,7.01,209.4,209.19,122.42959104]
[1756479022511,7.01,209.46,209.24,18.56959104]
[1756479023016,7.01,209.46,209.24,23.85727228]
[1756479023212,7.01,209.46,209.25,5.28768124]
[1756479023916,7.01,209.46,209.24,23.85727228]
[1756479024212,5.13340319,209.59,209.29,18.56959104]
[1756479024414,10.39744642,209.67,209.29,18.56959104]
[1756479024415,320.96,209.6,209.35,18.56959104]
[1756479024614,140.25,209.59,209.35,18.56959104]
[1756479024811,133.24,209.59,209.35,18.56959104]
[1756479025316,7.01,209.58,209.35,18.56959104]
[1756479025519,7.01,209.58,209.32,18.56959104]
[1756479026319,14.32,209.58,209.33,18.78]
[1756479026508,7.01,209.56,209.33,24.06768124]
[1756479026816,7.01,209.55,209.34,31.82]
[1756479027214,7.01,209.55,209.37,18.56959104]
[1756479027914,7.01,209.57,209.37,18.56959104]
[1756479028809,14.32,209.57,209.32,23.85727228]
[1756479029011,7.01,209.54,209.3,18.56959104]
[1756479029214,14.32,209.52,209.3,18.56959104]
[1756479029514,7.01,209.5,209.3,18.56959104]
[1756479029716,88.28,209.51,209.3,18.56959104]
[1756479029915,39.89959104,209.5,209.27,133.22]
[1756479030120,7.01,209.49,209.28,5.28768124]
[1756479030314,7.01,209.49,209.27,133.22]
[1756479030315,7.01,209.49,209.29,5.28768124]
[1756479030616,7.01,209.49,209.28,5.28768124]
[1756479030913,14.32,209.49,209.26,320.96]
[1756479031118,18.56959104,209.47,209.26,320.96]
[1756479031313,7.01,209.46,209.26,320.96]
[1756479031913,7.01,209.44,209.26,320.96]
[1756479032116,80.64,209.43,209.23,185.0033655]
[1756479032417,7.01,209.42,209.23,185.0033655]
[1756479033413,7.01,209.42,209.23,203.57295654]
[1756479033816,7.01,209.42,209.23,208.86063778]
[1756479034016,7.01,209.51,209.28,18.56959104]
[1756479034315,7.01,209.49,209.28,18.56959104]
[1756479034522,94.5,209.48,209.29,133.22]
[1756479035218,108.82,209.48,209.26,133.2]
[1756479035513,14.32,209.47,209.24,18.56959104]
[1756479035713,14.32,209.45,209.24,133.2]
[1756479035914,14.32,209.45,209.23,185.0033655]
[1756479036117,32.88959104,209.42,209.2,133.2]
[1756479036515,14.32,209.4,209.19,23.85727228]
[1756479036717,7.0,209.38,209.19,18.56959104]
[1756479037114,7.0,209.38,209.19,23.85727228]
[1756479037519,7.0,209.38,209.21,5.28768124]
[1756479037725,133.2,209.39,209.24,18.56959104]
[1756479037917,133.2,209.39,209.25,86.92]
[1756479038826,327.94,209.44,209.25,86.92]
[1756479039026,7.0,209.44,209.25,92.20768124]
[1756479039224,7.0,209.44,209.26,5.28768124]
[1756479039623,7.0,209.44,209.25,5.28768124]
[1756479039820,7.0,209.44,209.26,21.64]
[1756479040023,133.2,209.47,209.26,21.64]
[1756479040421,7.0,209.46,209.26,21.64]
[1756479041021,18.56959104,209.43,209.22,182.01725961]
[1756479041331,7.0,209.42,209.22,187.30494085]
[1756479041832,7.0,209.42,209.22,182.01725961]
[1756479042325,7.0,209.45,209.22,182.01725961]
[1756479042521,14.32,209.44,209.22,182.01725961]
[1756479042723,14.32,209.42,209.22,182.01725961]
[1756479042920,14.32,209.41,209.17,136.72768124]
[1756479043119,7.0,209.38,209.17,131.44]
[1756479043329,25.08,209.37,209.17,131.44]
[1756479043528,7.0,209.36,209.17,136.72768124]
[1756479043730,7.0,209.36,209.17,131.44]
[1756479044824,7.0,209.36,209.15,23.85727228]
[1756479045024,14.32,209.34,209.14,320.92]
[1756479045333,7.0,209.33,209.14,454.1]
[1756479045525,14.32,209.32,209.14,320.92]
[1756479045732,7.0,209.31,209.14,320.92]
[1756479046327,7.0,209.31,209.1,18.56959104]
[1756479046328,21.32,209.3,209.1,151.74959104]
[1756479046527,7.0,209.29,209.1,151.74959104]
[1756479046723,28.78,209.28,209.1,151.74959104]
[1756479047128,7.0,209.27,209.09,185.79770608]
[1756479047926,21.32,209.27,209.09,185.79770608]
[1756479048130,28.78,209.28,208.99,5.28768124]
[1756479048131,7.0,209.18,208.99,5.28768124]
[1756479048331,7.0,209.16,208.97,0.82892668]
[1756479048521,18.56959104,209.14,208.87,5.28768124]
[1756479048722,11.66,209.13,208.86,472.78959104]
[1756479048933,7.0,209.11,208.86,473.62216676]
[1756479049131,7.0,209.09,208.86,473.62216676]
[1756479049331,84.52,209.08,208.86,473.62216676]
[1756479049725,7.0,209.09,208.86,473.62216676]
[1756479049925,96.16,209.08,208.86,473.62216676]
[1756479050330,7.0,209.07,208.87,133.2]
[1756479050937,130.66,209.06,208.87,133.2]
[1756479051132,7.0,209.07,208.87,133.2]
[1756479055427,7.0,209.08,208.87,133.2]
[1756479055632,7.0,209.07,208.87,133.2]
[1756479056132,7.0,209.07,208.7,5.28768124]
[1756479056133,7.0,208.98,208.75,18.56959104]
[1756479056338,133.24,208.97,208.76,133.24]
[1756479056534,7.0,208.98,208.76,133.24]
[1756479056739,99.72,208.97,208.76,133.24]
[1756479057135,85.68,208.98,208.76,133.24]
[1756479057536,7.0,208.98,208.76,133.24]
[1756479058340,7.0,208.98,208.76,151.80959104]
[1756479058539,7.0,208.98,208.77,133.24]
[1756479059236,7.0,208.98,208.76,18.56959104]
[1756479059442,7.0,208.98,208.77,133.26]
[1756479060639,7.0,208.98,208.81,18.56959104]
[1756479060840,18.56959104,209.07,208.82,133.26]
[1756479061040,14.2,209.06,208.82,133.26]
[1756479061640,7.0,209.06,208.86,18.56959104]
[1756479062037,454.56,209.11,208.91,18.56959104]
[1756479062038,133.26,209.11,208.91,18.56959104]
[1756479062339,7.0,209.1,208.92,11.66]
[1756479062942,7.0,209.1,208.96,18.56959104]
[1756479063136,127.50397191,209.14,208.96,18.56959104]
[1756479063344,127.50397191,209.14,209.01,18.56959104]
[1756479063643,7.0,209.22,209.02,84.56]
[1756479064144,7.0,209.2,209.02,64.72]
[1756479064339,3.49696074,209.19,209.01,18.56959104]
[1756479064536,7.0,209.18,209.0,40.62]
[1756479064735,7.0,209.18,209.01,18.56959104]
[1756479064941,454.72,209.23,209.06,18.56959104]
[1756479065141,7.0,209.3,209.11,18.56959104]
[1756479065450,7.0,209.3,209.07,28.4]
[1756479065451,7.0,209.3,209.16,18.56959104]
[1756479065637,7.0,209.35,209.17,77.16]
[1756479066042,7.0,209.35,209.16,18.56959104]
[1756479066541,7.7,209.33,209.11,11.66]
[1756479066742,3.49396609,209.32,209.09,18.56959104]
[1756479066946,7.7,209.3,209.1,18.96]
[1756479067142,7.7,209.28,209.09,151.76959104]
[1756479068542,3.49696397,209.27,209.04,340.02959104]
[1756479068743,7.7,209.25,209.04,473.20959104]
[1756479068938,102.22,209.24,209.04,473.20959104]
[1756479069141,85.16,209.25,209.04,473.20959104]
[1756479069441,7.7,209.23,209.04,454.64]
[1756479069648,72.76,209.23,209.04,454.64]
[1756479070144,3.49971118,209.22,209.04,321.46]
[1756479070345,7.7,209.22,209.04,321.46]
[1756479070749,3.5016175,209.21,209.04,321.46]
[1756479071047,7.7,209.22,209.04,321.46]
[1756479071255,11.02,209.21,209.04,321.46]
[1756479071640,7.7,209.2,209.02,133.18]
[1756479072044,7.7,209.19,209.02,133.18]
[1756479072846,29.58959104,209.21,208.94,18.56959104]
[1756479073148,324.88710207,209.2,208.95,120.48]
[1756479073344,3.50710207,209.19,208.95,120.48]
[1756479073543,7.7,209.18,208.95,120.48]
[1756479073745,7.7,209.16,208.95,120.48]
[1756479074744,321.38,209.2,208.99,18.56959104]
[1756479075450,11.21391704,209.19,208.99,18.56959104]
[1756479075744,7.7,209.19,208.99,18.56959104]
[1756479076143,321.38,209.2,209.04,18.56959104]
[1756479076340,140.84,209.24,209.05,87.18]
[1756479076740,140.84,209.24,209.06,77.94]
[1756479077351,7.7,209.31,209.14,18.56959104]
[1756479077546,18.56959104,209.45,209.19,18.56959104]
[1756479077848,7.7,209.37,209.19,18.56959104]
[1756479078349,7.7,209.42,209.19,18.56959104]
[1756479078553,3.51226366,209.41,209.19,18.56959104]
[1756479078847,7.7,209.5,209.24,18.56959104]
[1756479079051,3.51152914,209.49,209.29,18.56959104]
[1756479079253,3.51152914,209.48,209.3,11.64]
[1756479079452,3.51152914,209.47,209.29,18.56959104]
[1756479079750,7.7,209.45,209.3,85.26]
[1756479082250,133.1,209.5,209.3,85.26]
[1756479082452,133.1,209.5,209.34,18.56959104]
[1756479082651,133.1,209.5,209.29,18.56959104]
[1756479082951,7.7,209.49,209.3,62.3]
[1756479083849,3.50603332,209.48,209.29,18.56959104]
[1756479084053,7.7,209.49,209.29,18.56959104]
[1756479084254,7.7,209.49,209.22,321.34]
[1756479084255,3.50504292,209.48,209.24,18.56959104]
[1756479084448,3.50504292,209.48,209.22,321.34]
[1756479084449,18.56959104,209.46,209.22,321.34]
[1756479084649,7.7,209.44,209.2,18.56959104]
[1756479084953,7.7,209.42,209.21,133.0]
[1756479085144,22.16504292,209.41,209.21,133.0]
[1756479085344,7.7,209.39,209.2,18.56959104]
[1756479085554,3.5092948,209.38,209.18,311.66183362]
[1756479085852,7.7,209.39,209.18,311.66183362]
[1756479086049,7.7,209.39,209.2,18.56959104]
[1756479086556,138.10043946,209.52,209.2,18.56959104]
[1756479086557,123.78043946,209.52,209.25,18.56959104]
[1756479086855,22.07801953,209.51,209.2,18.56959104]
[1756479087050,18.56959104,209.46,209.21,39.44]
[1756479087360,3.50842849,209.45,209.21,39.44]
[1756479087653,7.7,209.4,209.19,132.96]
[1756479089448,7.7,209.4,209.18,197.25142466]
[1756479089449,14.32,209.42,209.2,132.94]
[1756479089651,13.82,209.44,209.18,178.68183362]
[1756479089652,26.26959104,209.38,209.18,178.68183362]
[1756479089852,7.7,209.36,209.16,132.94]
[1756479090152,7.7,209.34,209.14,321.16]
[1756479090351,7.7,209.32,209.08,18.56959104]
[1756479090557,3.51075285,209.31,209.09,132.94]
[1756479090857,7.7,209.32,209.09,132.94]
[1756479091848,7.7,209.32,209.08,18.56959104]
[1756479092054,7.7,209.32,209.1,132.92]
[1756479092553,7.7,209.31,209.11,132.92]
[1756479093946,7.7,209.31,209.13,18.56959104]
[1756479094147,7.7,209.36,209.13,18.56959104]
[1756479094552,7.7,209.34,209.14,94.84]
[1756479094855,18.56959104,209.31,209.06,18.56959104]
[1756479095055,7.7,209.3,209.07,132.92]
[1756479095249,18.56959104,209.31,209.06,18.56959104]
[1756479095250,32.88959104,209.31,209.08,132.92]
[1756479095451,7.7,209.3,209.08,132.92]
[1756479095753,32.88959104,209.31,209.07,132.92]
[1756479095754,7.7,209.28,209.07,132.92]
[1756479095953,7.7,209.26,209.06,132.92]
[1756479096354,7.7,209.25,209.06,132.92]
[1756479097961,7.7,209.25,209.06,151.48959104]
[1756479098856,7.77,209.3,209.11,18.56959104]
[1756479099054,7.77,209.3,209.12,132.92]
[1756479099755,8.60188908,209.3,209.12,132.92]
[1756479100160,7.77,209.28,209.12,132.92]
[1756479100359,14.32,209.29,209.12,132.92]
[1756479100658,7.77,209.28,209.12,132.92]
[1756479101365,7.77,209.28,208.93,805.28768124]
[1756479101366,22.09,209.23,209.0,132.9]
[1756479101559,34.7,209.22,209.01,132.9]
[1756479101863,7.77,209.23,209.01,151.46959104]
[1756479102766,14.32,209.22,209.01,151.46959104]
[1756479102961,3.47716644,209.21,209.01,132.9]
[1756479103160,7.77,209.19,209.01,132.9]
[1756479103657,140.67,209.19,209.01,132.9]
[1756479103965,7.77,209.19,209.01,132.9]
[1756479104164,7.77,209.19,209.01,151.46959104]
[1756479106566,321.18,209.25,209.06,18.56959104]
[1756479106767,3.4896191,209.24,209.06,18.56959104]
[1756479107068,7.77,209.22,209.06,18.56959104]
[1756479108367,7.77,209.22,209.01,18.56959104]
[1756479108568,3.37526821,209.21,209.01,18.56959104]
[1756479108766,7.77,209.22,209.01,18.56959104]
[1756479108965,3.37543875,209.21,209.01,18.56959104]
[1756479109269,7.77,209.2,209.01,18.56959104]
[1756479110973,7.77,209.2,209.01,51.32959104]
[1756479114065,321.18,209.25,209.01,51.32959104]
[1756479114066,7.77,209.27,209.06,18.56959104]
[1756479114265,3.37341582,209.26,209.06,18.56959104]
[1756479114574,7.77,209.27,209.11,18.56959104]
[1756479114772,3.37354484,209.26,209.11,18.56959104]
[1756479114975,7.77,209.27,209.11,18.56959104]
[1756479115270,7.77,209.25,209.06,18.56959104]
[1756479115476,7.77,209.23,209.06,18.56959104]
[1756479116372,7.77,209.23,209.0,18.56959104]
[1756479116564,7.77,209.21,208.99,18.56959104]
[1756479116770,3.37570241,209.2,208.99,18.56959104]
[1756479116965,7.77,209.18,208.99,18.56959104]
[1756479117170,43.76,209.17,208.99,18.56959104]
[1756479117575,7.77,209.18,208.99,18.56959104]
[1756479120179,7.77,209.18,208.98,14.9]
[1756479120180,7.77,209.28,209.04,18.56959104]
[1756479120366,7.77,209.28,209.1,18.56959104]
[1756479121566,7.77,209.29,209.1,18.56959104]
[1756479121771,7.77,209.28,209.1,18.56959104]
[1756479121972,7.77,209.27,209.1,18.56959104]
[1756479124175,7.77,209.28,209.1,18.56959104]
[1756479124681,7.77,209.28,209.03,7.93152187]
[1756479124682,7.77,209.27,209.05,18.56959104]
[1756479124982,7.77,209.26,209.05,18.56959104]
[1756479125370,11.1978818,209.26,209.05,181.3040205]
[1756479125572,25.50431015,209.25,209.05,192.5019023]
[1756479125779,14.35,209.25,209.05,192.5019023]
[1756479125978,7.77,209.23,209.05,192.5019023]
[1756479126180,14.35,209.25,209.05,192.5019023]
[1756479126482,7.77,209.23,209.05,192.5019023]
[1756479126677,11.1978818,209.22,209.05,192.5019023]
[1756479126875,7.58,209.21,209.05,181.3040205]
[1756479127072,7.58,209.21,209.05,192.5019023]
[1756479127372,7.58,209.21,209.05,181.3040205]
[1756479127580,11.1978818,209.23,209.05,181.3040205]
[1756479127781,7.58,209.21,209.05,181.3040205]
[1756479127981,7.58,209.22,209.05,181.3040205]
[1756479128179,7.58,209.2,209.03,11.1978818]
[1756479128379,7.58,209.18,209.0,332.4978818]
[1756479128576,7.58,209.14,208.96,11.1978818]
[1756479128881,3.39411013,209.13,208.96,11.1978818]
[1756479129082,115.92,209.14,208.96,11.1978818]
[1756479129381,7.58,209.12,208.92,143.9378818]
[1756479130085,7.58,209.12,208.91,138.02768124]
[1756479130276,7.58,209.12,208.93,11.1978818]
[1756479130472,7.58,209.1,208.93,11.1978818]
[1756479130676,14.59377635,209.11,208.89,11.1978818]
[1756479130677,7.58,209.09,208.89,11.1978818]
[1756479130978,7.58,209.07,208.89,11.1978818]
[1756479131179,11.1978818,209.07,208.89,11.1978818]
[1756479131475,14.35,209.11,208.86,105.46]
[1756479131476,7.58,209.05,208.86,105.46]
[1756479131680,7.58,209.05,208.87,18.75904567]
[1756479131882,7.58,209.05,208.87,24.04672691]
[1756479132480,7.58,209.05,208.87,18.75904567]
[1756479134782,7.58,209.05,208.87,24.04672691]
[1756479135478,7.58,209.05,208.88,132.72]
[1756479136579,7.58,209.05,208.87,24.04672691]
[1756479136580,7.58,209.08,208.86,5.28768124]
[1756479136778,3.3949594,209.07,208.85,321.3]
[1756479136980,18.75904567,209.09,208.85,321.3]
[1756479136981,7.58,209.06,208.86,5.28768124]
[1756479137580,30.88,209.08,208.85,321.3]
[1756479137785,10.97478277,209.07,208.85,326.58768124]
[1756479138084,7.58,209.07,208.85,326.58768124]
[1756479138484,7.58,209.07,208.86,5.28768124]
[1756479138679,7.58,209.07,208.87,18.75904567]
[1756479138885,7.58,209.07,208.88,132.72]